bitfinex/quotes_ETHUSD_20250326
["timestamp","ask_amount","ask_price","bid_price","bid_amount"]
[1742958045289,9.75883019,2053.7,2053.6,5.4632135]
[1742958045466,7.841,2053.7,2053.6,5.4632135]
[1742958046490,4.837,2053.8,2053.6,0.5937235]
[1742958046788,3.0,2053.8,2053.7,4.86926]
[1742958047001,3.0,2053.8,2053.7,5.99356035]
[1742958047294,28.12,2054.0,2053.9,4.86878]
[1742958047602,28.12,2054.0,2053.8,4.86899]
[1742958048204,28.12,2054.0,2053.9,4.86878]
[1742958048563,28.12,2054.0,2053.7,5.99353035]
[1742958048770,30.46538145,2054.0,2053.7,4.86923]
[1742958049399,28.12,2054.0,2053.8,4.86893]
[1742958049559,28.12,2054.0,2053.9,4.86878]
[1742958050995,7.837,2054.1,2054.0,4.86854]
[1742958051304,7.83,2054.1,2054.0,5.842272]
[1742958052265,4.83,2054.1,2054.0,5.842272]
[1742958053410,4.83,2054.1,2054.0,6.667772]
[1742958053974,4.82553806,2054.1,2054.0,5.842272]
[1742958058902,4.82553806,2054.1,2053.7,4.86921]
[1742958058903,7.17091951,2054.1,2053.7,4.86912]
[1742958059271,7.17091951,2054.1,2053.8,4.86901]
[1742958060705,7.17091951,2054.1,2053.7,4.86912]
[1742958061277,7.17091951,2054.1,2053.7,4.86907]
[1742958061670,7.17091951,2054.1,2053.8,4.86888]
[1742958062510,7.17091951,2054.1,2053.9,4.86869]
[1742958062673,7.17091951,2054.1,2053.8,5.90215735]
[1742958063309,7.17091951,2054.1,2053.8,1.03316735]
[1742958063607,7.17091951,2054.1,2053.8,4.86899]
[1742958064418,7.17091951,2054.1,2053.7,4.86921]
[1742958064798,7.17091951,2054.1,2053.8,4.86901]
[1742958065814,7.17091951,2054.1,2053.7,9.73837]
[1742958066512,2.34538145,2053.9,2053.7,4.86916]
[1742958066711,0.7887,2053.8,2053.5,4.86951]
[1742958066878,2.34538145,2053.7,2053.5,5.356461]
[1742958067084,0.7887,2053.8,2053.7,4.86926]
[1742958067307,2.34538145,2053.9,2053.7,4.86926]
[1742958068429,2.34538145,2053.9,2053.8,0.0853]
[1742958070335,3.7887,2054.0,2053.8,0.0853]
[1742958071028,3.0,2054.0,2053.8,0.0853]
[1742958071188,3.0,2054.0,2053.8,4.95413]
[1742958071388,7.17091951,2054.1,2053.8,9.82301]
[1742958071606,7.17091951,2054.1,2053.9,4.8687]
[1742958071607,4.78,2054.0,2053.9,4.8687]
[1742958074147,4.775,2054.0,2053.8,7.464981]
[1742958074420,4.775,2054.0,2053.9,4.86878]
[1742958074826,4.775,2054.0,2053.8,21.964931]
[1742958075118,4.775,2054.0,2053.9,4.86878]
[1742958075324,4.775,2054.0,2053.9,5.49016374]
[1742958075489,4.775,2054.0,2053.8,21.964851]
[1742958075689,4.775,2054.0,2053.8,7.464851]
[1742958075923,4.775,2054.0,2053.8,4.95414]
[1742958076625,2.34538145,2053.9,2053.8,0.0853]
[1742958076788,6.12518145,2053.9,2053.8,0.0853]
[1742958077592,6.49246165,2053.9,2053.8,0.0853]
[1742958077991,7.772,2053.9,2053.8,0.0853]
[1742958078899,3.0,2053.9,2053.8,5.936706]
[1742958079226,7.772,2053.9,2053.8,5.936706]
[1742958079423,7.772,2053.9,2053.8,1.067686]
[1742958079594,7.772,2053.9,2053.8,0.0853]
[1742958080326,7.772,2053.9,2053.8,4.95432]
[1742958080523,4.772,2053.9,2053.8,4.95432]
[1742958081215,4.772,2053.9,2053.8,5.73842]
[1742958081393,4.772,2053.9,2053.8,6.799187]
[1742958081589,2.34538145,2054.2,2053.9,4.86873]
[1742958081795,4.771,2054.0,2053.9,4.86873]
[1742958084135,4.771,2054.0,2053.9,19.36873]
[1742958084334,3.0,2054.4,2054.1,9.73647]
[1742958084556,4.77,2054.3,2054.1,9.73647]
[1742958084742,4.77,2054.3,2054.0,4.86851]
[1742958084954,5.34538145,2054.2,2053.8,4.95427]
[1742958085128,5.34538145,2054.2,2053.8,4.95418]
[1742958085323,5.34538145,2054.2,2053.9,4.86865]
[1742958087964,0.816,2054.1,2053.8,4.95426]
[1742958088268,0.816,2054.1,2053.8,0.0853]
[1742958088564,0.816,2054.1,2053.8,4.9542]
[1742958089128,2.34538145,2054.0,2053.8,0.0853]
[1742958089323,2.34538145,2054.0,2053.8,4.95431]
[1742958089623,2.34538145,2054.0,2053.8,4.9542]
[1742958090051,2.34538145,2054.0,2053.8,9.82307]
[1742958090246,3.0,2054.2,2053.8,4.95417]
[1742958090449,4.759,2054.1,2054.0,4.86841]
[1742958092067,4.759,2054.1,2054.0,4.86854]
[1742958092850,4.759,2054.1,2053.9,4.86875]
[1742958093057,4.759,2054.1,2053.9,9.73736]
[1742958093357,4.759,2054.1,2053.9,10.719626]
[1742958093925,4.759,2054.1,2053.9,5.850876]
[1742958094343,4.759,2054.1,2054.0,4.86854]
[1742958094744,4.759,2054.1,2053.9,5.850876]
[1742958094944,4.759,2054.1,2053.9,10.719536]
[1742958095144,4.759,2054.1,2053.9,5.850876]
[1742958095667,4.759,2054.1,2053.9,10.719526]
[1742958096671,4.75413157,2054.1,2053.9,10.719526]
[1742958096965,4.75413157,2054.1,2054.0,5.9490226]
[1742958097836,3.0,2054.3,2054.1,4.86831]
[1742958098037,7.757,2054.2,2054.1,4.86831]
[1742958099332,1.17665921,2054.5,2054.3,4.86783]
[1742958099333,0.816,2054.5,2054.3,4.86783]
[1742958099538,4.755,2054.4,2054.2,4.86796]
[1742958099739,4.755,2054.4,2054.2,6.03154426]
[1742958100162,4.755,2054.4,2054.2,10.89945426]
[1742958101472,4.755,2054.4,2054.3,4.86783]
[1742958102168,4.755,2054.4,2054.2,20.53154426]
[1742958102373,4.755,2054.4,2054.2,25.39952426]
[1742958102671,4.755,2054.4,2054.3,4.86783]
[1742958104869,4.755,2054.4,2054.2,6.03169426]
[1742958105170,4.755,2054.4,2054.2,10.89957426]
[1742958105382,4.755,2054.4,2054.3,4.86783]
[1742958107194,4.755,2054.4,2054.3,5.66924692]
[1742958108587,4.733,2054.5,2054.4,4.8676]
[1742958112457,0.8386,2054.9,2054.6,4.86701]
[1742958112659,7.726,2054.8,2054.6,4.86701]
[1742958112962,10.07138145,2054.8,2054.5,4.8673]
[1742958113167,10.07138145,2054.8,2054.5,10.87861069]
[1742958114650,10.07138145,2054.8,2054.5,6.01131069]
[1742958114812,10.07138145,2054.8,2054.3,4.95313]
[1742958114813,2.34538145,2054.6,2054.3,4.95313]
[1742958115015,2.34538145,2054.6,2054.4,4.86747]
[1742958115411,2.34538145,2054.6,2054.4,9.73489]
[1742958115788,2.34538145,2054.6,2054.4,4.86742]
[1742958116903,2.34538145,2054.6,2054.5,4.86736]
[1742958118019,2.34538145,2054.6,2054.4,4.86755]
[1742958119623,2.34538145,2054.6,2054.3,9.73548]
[1742958119801,2.34538145,2054.6,2054.3,10.790248]
[1742958119974,2.34538145,2054.6,2054.4,4.86758]
[1742958120816,2.34538145,2054.6,2054.3,5.922428]
[1742958121052,2.34538145,2054.6,2054.3,10.790078]
[1742958121248,2.34538145,2054.6,2054.4,4.8676]
[1742958122850,10.07138145,2054.8,2054.5,4.86725]
[1742958124260,5.34538145,2054.8,2054.6,4.86694]
[1742958124552,5.34538145,2054.8,2054.7,4.86689]
[1742958124754,10.05438145,2054.8,2054.7,4.86689]
[1742958125069,9.96888145,2054.8,2054.7,4.86689]
[1742958125551,9.96888145,2054.8,2054.5,5.67954]
[1742958125768,9.96888145,2054.8,2054.5,4.86734]
[1742958125931,9.96888145,2054.8,2054.6,4.86704]
[1742958128152,9.96888145,2054.8,2054.6,9.73398]
[1742958128958,9.96888145,2054.8,2054.7,4.86689]
[1742958130056,4.721,2054.9,2054.8,4.86665]
[1742958130226,4.721,2054.9,2054.8,5.916874]
[1742958130821,7.06638145,2054.9,2054.8,1.050224]
[1742958131021,7.06638145,2054.9,2054.8,5.916874]
[1742958131261,7.06638145,2054.9,2054.7,4.86688]
[1742958131564,7.06638145,2054.9,2054.6,4.86702]
[1742958131921,7.06638145,2054.9,2054.6,9.73403]
[1742958132462,7.06638145,2054.9,2054.6,4.86701]
[1742958133160,6.94886145,2054.9,2054.6,4.86701]
[1742958133466,6.94886145,2054.9,2054.6,10.8128683]
[1742958133975,2.34538145,2054.7,2054.6,5.9458583]
[1742958135077,2.34538145,2054.7,2054.0,4.86835]
[1742958135365,2.34538145,2054.5,2054.4,4.86748]
[1742958135570,2.34538145,2054.5,2054.4,4.8676]
[1742958138652,2.34538145,2054.7,2054.4,4.8676]
[1742958139068,2.34538145,2054.7,2054.4,9.73502]
[1742958139364,2.34538145,2054.7,2054.4,4.86742]
[1742958140365,2.34538145,2054.7,2054.3,9.73564]
[1742958140565,2.34538145,2054.5,2054.3,9.73564]
[1742958140866,2.34538145,2054.5,2054.4,4.8676]
[1742958141934,2.34538145,2054.5,2054.3,5.918254]
[1742958142129,2.34538145,2054.5,2054.3,10.785974]
[1742958142764,2.34538145,2054.5,2054.3,5.918154]
[1742958143365,4.691,2054.4,2053.9,0.7637]
[1742958143567,2.34538145,2054.1,2053.9,5.63229]
[1742958143864,2.34538145,2054.3,2054.1,4.86822]
[1742958144165,2.34538145,2054.3,2054.1,9.73636]
[1742958144365,2.34538145,2054.7,2054.2,1.737336]
[1742958144546,4.691,2054.5,2054.4,4.86744]
[1742958144867,9.00148315,2054.5,2054.4,4.86744]
[1742958145937,6.00148315,2054.5,2054.4,4.86744]
[1742958146137,4.691,2054.5,2054.4,6.0147006]
[1742958146570,6.00148315,2054.5,2054.4,6.0147006]
[1742958147569,4.691,2054.5,2054.4,6.0147006]
[1742958148037,6.00148315,2054.5,2054.4,6.0147006]
[1742958148238,0.7579,2054.8,2054.7,4.86689]
[1742958148471,0.7579,2054.8,2054.5,4.8672]
[1742958148472,6.75938315,2054.8,2054.5,4.8672]
[1742958148667,1.31048315,2054.6,2054.5,5.95539206]
[1742958149372,1.31048315,2054.7,2054.5,5.95539206]
[1742958149750,1.31048315,2054.7,2054.5,10.82259206]
[1742958150776,1.31048315,2054.6,2054.5,10.82259206]
[1742958151690,1.31048315,2054.6,2054.5,1.08819206]
[1742958151864,1.31048315,2054.6,2054.4,4.86753]
[1742958152064,1.31048315,2054.5,2054.4,4.86753]
[1742958152758,1.31048315,2054.5,2054.2,5.841536]
[1742958153069,1.31048315,2054.3,2054.2,4.8679]
[1742958153261,4.691,2054.3,2054.2,4.86785]
[1742958155397,4.691,2054.5,2054.4,5.63716]
[1742958155546,4.691,2054.5,2054.4,4.86736]
[1742958156890,28.8754,2055.1,2054.6,4.86712]
[1742958157045,7.03216405,2055.0,2054.6,4.86704]
[1742958157246,7.03216405,2055.0,2054.6,9.73402]
[1742958157562,7.03216405,2055.0,2054.7,4.86677]
[1742958158904,4.692,2055.0,2054.8,4.86658]
[1742958159203,4.692,2055.0,2054.9,4.86641]
[1742958159364,32.781,2055.1,2055.0,4.86618]
[1742958159770,28.086,2055.1,2055.0,4.86618]
[1742958161960,28.086,2055.1,2054.9,5.839679]
[1742958162159,28.086,2055.1,2055.0,4.86618]
[1742958162609,7.03416405,2055.2,2055.0,4.86618]
[1742958163284,7.03416405,2055.2,2055.0,9.73216]
[1742958163607,10.03416405,2055.2,2055.1,4.86594]
[1742958164105,10.03416405,2055.2,2055.0,4.86598]
[1742958165702,10.03116405,2055.2,2055.0,4.86597]
[1742958165909,10.03116405,2055.2,2055.1,4.86594]
[1742958167608,10.03116405,2055.2,2055.0,4.86611]
[1742958169667,10.03116405,2055.2,2055.1,4.86594]
[1742958170068,10.03116405,2055.2,2055.0,4.86611]
[1742958170269,10.03116405,2055.2,2054.9,4.86641]
[1742958170578,2.34016405,2055.0,2054.8,4.86664]
[1742958170762,2.34016405,2055.0,2054.8,12.233004]
[1742958170962,2.34016405,2055.0,2054.8,7.366364]
[1742958172470,3.09526405,2055.0,2054.6,4.86711]
[1742958172669,2.34016405,2054.8,2054.5,4.8673]
[1742958172968,4.69,2054.7,2054.6,4.86712]
[1742958173998,2.34016405,2054.9,2054.7,4.86686]
[1742958174296,4.69,2054.8,2054.7,7.290258]
[1742958174716,4.69,2054.8,2054.7,8.070258]
[1742958175178,4.69,2054.8,2054.7,7.290258]
[1742958178293,4.69,2054.8,2054.7,21.790258]
[1742958178803,7.03016405,2055.1,2054.8,4.86646]
[1742958179097,7.03016405,2055.1,2054.8,7.5321318]
[1742958179409,7.03016405,2055.1,2054.9,19.36636]
[1742958184424,7.03016405,2055.1,2054.9,14.5]
[1742958185124,0.8148,2055.0,2054.7,4.86687]
[1742958185305,2.34016405,2054.9,2054.6,4.86706]
[1742958185494,0.8148,2055.0,2054.6,4.86706]
[1742958185495,2.34016405,2054.7,2054.6,19.36706]
[1742958185692,2.34016405,2054.7,2054.6,21.790484]
[1742958186200,2.34016405,2054.7,2054.6,7.290484]
[1742958186402,2.34016405,2054.7,2054.6,4.86706]
[1742958188430,2.34016405,2054.7,2054.4,4.86754]
[1742958188625,4.69,2054.6,2054.4,4.8674]
[1742958188788,4.69,2054.6,2054.5,4.8673]
[1742958191385,4.69,2054.6,2054.4,4.8674]
[1742958191630,2.34016405,2054.5,2054.4,4.8674]
[1742958192531,2.34016405,2054.5,2054.3,19.36783]
[1742958192830,3.13086405,2054.5,2054.2,4.86806]
[1742958193030,3.13086405,2054.5,2054.3,4.8678]
[1742958193830,3.13086405,2054.5,2054.2,4.86797]
[1742958194192,3.13086405,2054.5,2054.2,9.73594]
[1742958194730,3.13086405,2054.5,2054.3,4.8678]
[1742958197715,3.13086405,2054.5,2054.2,4.86802]
[1742958201963,2.34016405,2054.3,2054.0,4.86842]
[1742958202162,2.34016405,2054.3,2054.1,4.86829]
[1742958202834,2.34016405,2054.3,2054.2,4.86807]
[1742958203025,2.34016405,2054.3,2054.1,9.7365]
[1742958203359,2.34016405,2054.3,2054.1,4.86821]
[1742958203519,2.34016405,2054.3,2054.1,9.73642]
[1742958203721,2.34016405,2054.3,2054.2,4.86807]
[1742958208282,2.34016405,2054.3,2054.1,4.8682]
[1742958208988,1.31092049,2054.2,2054.1,4.8682]
[1742958212088,1.31092049,2054.2,2054.1,4.8827]
[1742958216435,1.31092049,2054.2,2054.1,4.88281]
[1742958220941,1.31092049,2054.2,2054.1,0.0145]
[1742958222454,1.31092049,2054.2,2054.1,4.88281]
[1742958223415,4.69,2054.2,2054.1,7.875125]
[1742958223925,6.00092049,2054.2,2054.1,7.875125]
[1742958224130,6.00092049,2054.2,2054.1,4.88281]
[1742958225114,6.00092049,2054.2,2054.1,0.0145]
[1742958227027,6.00092049,2054.2,2054.1,4.88281]
[1742958231068,6.00092049,2054.2,2054.1,0.0145]
[1742958231069,9.81252049,2054.2,2054.1,0.0145]
[1742958231244,10.79377254,2054.2,2054.1,0.0145]
[1742958232844,11.82502786,2054.2,2054.1,0.0145]
[1742958233759,12.19613389,2054.2,2054.1,0.0145]
[1742958242761,12.74613389,2054.2,2054.1,0.0145]
[1742958244179,15.0883097,2054.2,2054.1,0.0145]
[1742958244471,12.74613389,2054.2,2054.1,0.0145]
[1742958244893,15.0883097,2054.2,2054.1,0.0145]
[1742958246447,12.74613389,2054.2,2054.1,0.0145]
[1742958246866,12.74713389,2054.2,2054.1,0.0145]
[1742958247262,12.19713389,2054.2,2054.1,0.0145]
[1742958248391,12.74713389,2054.2,2054.1,0.0145]
[1742958248551,15.0893097,2054.2,2054.1,0.0145]
[1742958248986,43.1873097,2054.2,2054.1,0.0145]
[1742958249143,40.84513389,2054.2,2054.1,0.0145]
[1742958249648,40.29513389,2054.2,2054.1,0.0145]
[1742958250757,40.84513389,2054.2,2054.1,0.0145]
[1742958252076,48.0553797,2054.2,2054.1,0.0145]
[1742958252784,0.8097,2054.0,2053.1,5.67187]
[1742958252951,0.8097,2053.9,2053.3,4.8702]
[1742958253150,3.0,2053.7,2053.3,0.8012]
[1742958253481,7.691,2053.6,2053.5,5.67082]
[1742958253781,7.691,2053.6,2053.5,0.8012]
[1742958255284,7.691,2053.6,2053.5,5.67093]
[1742958255462,7.691,2053.6,2053.5,0.8012]
[1742958257391,7.691,2053.6,2053.5,5.67093]
[1742958260590,7.691,2053.6,2053.5,0.8012]
[1742958262774,7.691,2053.6,2053.5,5.67093]
[1742958264663,4.691,2053.6,2053.5,5.67093]
[1742958267198,4.691,2053.6,2053.5,6.72502]
[1742958270269,4.691,2053.6,2053.5,5.67093]
[1742958271310,4.40014539,2054.1,2053.6,4.86949]
[1742958271476,5.34217581,2053.9,2053.6,4.86949]
[1742958274418,28.098,2054.2,2053.7,0.763]
[1742958274578,4.69,2054.4,2054.1,9.73644]
[1742958274912,1.31086614,2054.2,2054.0,5.63148]
[1742958275293,4.69,2054.3,2054.0,0.763]
[1742958275294,1.31086614,2054.1,2054.0,0.763]
[1742958275614,4.31086614,2054.2,2053.9,9.73731]
[1742958275783,1.31086614,2054.1,2053.9,4.8686]
[1742958276315,1.31086614,2054.1,2053.9,9.73725]
[1742958276680,4.31086614,2054.2,2053.9,9.73725]
[1742958276910,3.0,2054.2,2053.9,9.73725]
[1742958277424,3.0,2054.2,2053.9,4.8686]
[1742958277591,4.05767681,2054.2,2053.9,4.8686]
[1742958279619,2.34099786,2054.1,2053.8,4.869]
[1742958281313,4.05767681,2054.2,2053.8,4.86885]
[1742958281521,3.0,2054.2,2053.8,4.86885]
[1742958281683,3.0,2054.2,2053.9,4.86869]
[1742958281886,4.08575979,2054.2,2053.9,4.86869]
[1742958283017,3.0,2054.2,2054.0,5.64401]
[1742958283220,3.0,2054.2,2054.1,4.86831]
[1742958283793,4.69,2054.3,2054.0,5.64398]
[1742958284716,4.69,2054.3,2054.0,5.64387]
[1742958285521,4.69,2054.3,2054.1,4.86822]
[1742958286025,4.69,2054.3,2054.0,5.64387]
[1742958286825,5.69309979,2054.3,2054.0,4.86837]
[1742958287587,5.69309979,2054.3,2053.9,4.86871]
[1742958287892,5.34099786,2054.2,2053.8,0.7755]
[1742958288093,2.34099786,2054.0,2053.6,5.64493]
[1742958288416,2.34099786,2054.0,2053.6,10.51426]
[1742958288932,2.34099786,2054.0,2053.7,4.86921]
[1742958290930,5.34099786,2054.2,2053.8,4.86888]
[1742958291128,5.90959551,2054.2,2053.8,4.86888]
[1742958294438,5.90959551,2054.2,2053.7,4.86924]
[1742958295027,5.90959551,2054.2,2053.8,14.5]
[1742958295235,3.0,2054.0,2053.8,4.86899]
[1742958296432,3.0,2054.0,2053.9,4.86878]
[1742958296606,3.0,2054.0,2053.8,4.86899]
[1742958296934,4.31114306,2054.0,2053.8,4.86899]
[1742958297237,4.31114306,2054.0,2053.8,9.73782]
[1742958297602,3.0,2054.0,2053.9,4.86878]
[1742958301236,0.8241,2054.3,2053.9,9.73742]
[1742958301237,1.31114306,2054.2,2053.9,9.73742]
[1742958301427,4.688,2054.1,2053.9,4.86864]
[1742958301925,5.99914306,2054.1,2053.9,4.86864]
[1742958302128,4.688,2054.1,2053.9,5.67164]
[1742958303130,5.99914306,2054.1,2053.8,19.36895]
[1742958303322,5.99914306,2054.1,2053.8,4.86895]
[1742958303522,6.68146737,2054.1,2053.8,4.86895]
[1742958303909,5.99914306,2054.1,2053.8,4.86895]
[1742958304761,1.31114306,2054.0,2053.8,4.86895]
[1742958306453,1.31114306,2053.9,2053.7,4.86923]
[1742958306752,1.31114306,2053.9,2053.8,4.86902]
[1742958307110,1.31114306,2054.0,2053.8,4.86902]
[1742958307847,5.99914306,2054.1,2053.9,4.86878]
[1742958308569,0.8314,2054.5,2053.9,1.77678]
[1742958308712,3.62943053,2054.9,2054.8,4.86665]
[1742958308912,2.79803053,2054.9,2054.8,4.86665]
[1742958309140,2.79803053,2054.9,2054.7,5.66981]
[1742958309141,4.10917359,2054.9,2054.7,5.66981]
[1742958309341,5.07193095,2054.9,2054.6,9.73401]
[1742958309641,4.10917359,2054.9,2054.7,4.86671]
[1742958309959,7.48503053,2054.9,2054.8,4.86665]
[1742958310323,8.79617359,2054.9,2054.5,20.19577]
[1742958310644,1.31114306,2054.7,2054.5,19.36717]
[1742958310943,0.8272,2054.8,2054.5,19.36717]
[1742958311525,9.82466067,2054.9,2054.5,9.73433]
[1742958311836,10.88984674,2054.9,2054.5,4.86716]
[1742958312032,10.88984674,2054.9,2054.4,4.86759]
[1742958312033,2.33963014,2054.7,2054.4,4.86759]
[1742958312542,2.33963014,2054.7,2054.5,4.86732]
[1742958312842,3.8272,2054.8,2054.5,5.23155461]
[1742958313040,2.33963014,2054.7,2054.5,0.36423461]
[1742958314342,2.33963014,2054.7,2054.4,0.36423461]
[1742958316011,2.33963014,2054.7,2054.3,0.36423461]
[1742958316660,2.33963014,2054.7,2054.3,5.23205461]
[1742958316829,2.33963014,2054.5,2054.3,0.36423461]
[1742958317017,4.686,2054.4,2054.3,0.36423461]
[1742958317417,4.686,2054.4,2054.2,5.23227461]
[1742958318853,4.686,2054.3,2054.2,6.06090461]
[1742958321752,3.16683014,2054.8,2054.4,4.86749]
[1742958321948,4.686,2054.7,2054.4,4.86749]
[1742958322169,1.18023882,2054.8,2054.6,4.86691]
[1742958322367,7.686,2054.7,2054.6,4.86691]
[1742958323822,3.0,2054.7,2054.6,4.86691]
[1742958324023,7.686,2054.7,2054.5,5.69589]
[1742958324864,8.4479,2054.7,2054.4,4.86758]
[1742958325065,4.685,2054.6,2054.4,4.86749]
[1742958325354,4.685,2054.6,2054.4,9.73494]
[1742958325556,4.685,2054.6,2054.4,4.86745]
[1742958325951,4.685,2054.6,2054.4,9.73487]
[1742958326155,4.685,2054.6,2054.5,4.86736]
[1742958327826,3.0,2054.7,2054.5,4.86736]
[1742958327827,3.0,2054.7,2054.5,4.86718]
[1742958328031,4.685,2054.6,2054.4,4.86753]
[1742958328861,4.685,2054.6,2054.5,4.86736]
[1742958329063,4.685,2054.6,2054.4,4.86745]
[1742958329558,4.685,2054.6,2054.4,9.73492]
[1742958330463,4.685,2054.6,2054.4,4.86745]
[1742958331266,0.23640007,2054.5,2054.4,9.73488]
[1742958331435,4.685,2054.6,2054.4,9.73488]
[1742958331863,4.685,2054.6,2054.5,4.86736]
[1742958332045,4.685,2054.6,2054.5,5.63666]
[1742958332769,4.685,2054.6,2054.4,4.86743]
[1742958333841,4.685,2054.6,2054.4,9.73484]
[1742958334373,4.685,2054.6,2054.5,4.86736]
[1742958336269,3.0,2054.7,2054.6,0.7693]
[1742958336439,7.685,2054.7,2054.6,0.7693]
[1742958336645,7.92857,2054.7,2054.6,0.7693]
[1742958336848,7.92857,2054.7,2054.5,4.86736]
[1742958337771,7.92857,2054.7,2054.3,19.36775]
[1742958337959,12.06622015,2054.7,2054.2,5.63724]
[1742958338138,12.06622015,2054.7,2054.2,5.63722]
[1742958338343,12.06622015,2054.7,2054.3,4.86769]
[1742958341688,0.54487743,2054.6,2054.0,5.63455]
[1742958341895,2.58226639,2054.5,2054.1,4.86824]
[1742958342248,3.0,2054.4,2054.2,14.5]
[1742958342553,3.0,2054.4,2054.1,4.86824]
[1742958342554,0.24164738,2054.3,2054.1,4.86824]
[1742958342753,4.684,2054.2,2054.1,4.86824]
[1742958343147,4.92518034,2054.2,2054.1,4.86824]
[1742958344595,4.92518034,2054.2,2054.1,5.918537]
[1742958345180,4.684,2054.2,2054.1,6.684737]
[1742958345578,4.92518034,2054.2,2054.1,6.684737]
[1742958346179,0.24118034,2054.2,2054.1,9.57436714]
[1742958346563,4.684,2054.4,2054.3,4.86783]
[1742958346752,4.684,2054.4,2054.3,6.79884871]
[1742958346960,4.92607712,2054.4,2054.3,6.79884871]
[1742958351452,0.24207712,2054.4,2054.3,10.57015296]
[1742958351783,4.684,2054.8,2054.7,4.86689]
[1742958352163,4.884126,2054.8,2054.7,4.86689]
[1742958357602,0.36411423,2055.5,2055.3,4.86528]
[1742958357771,0.36411423,2055.5,2055.4,5.69253]
[1742958357958,0.36411423,2055.5,2055.4,4.86523]
[1742958358359,5.4912,2055.9,2055.4,9.73046]
[1742958358559,5.4912,2055.9,2055.4,4.86514]
[1742958358777,5.4912,2055.9,2055.5,4.86499]
[1742958359195,3.0,2055.8,2055.5,4.86499]
[1742958360489,0.15119908,2055.7,2055.5,4.86499]
[1742958361595,3.0,2055.8,2055.5,4.86499]
[1742958362099,0.15119908,2055.7,2055.5,4.86499]
[1742958362270,3.0,2055.9,2055.6,1.80032]
[1742958362476,0.15166543,2055.8,2055.7,4.86443]
[1742958362676,0.15166543,2055.8,2055.5,4.86499]
[1742958362992,0.15166543,2055.8,2055.5,4.86484]
[1742958363161,0.15166543,2055.8,2055.5,9.72967]
[1742958363365,0.15166543,2055.8,2055.5,10.785367]
[1742958363565,0.15166543,2055.8,2055.5,10.785327]
[1742958363865,0.15166543,2055.8,2055.6,4.86475]
[1742958366880,4.83366543,2055.8,2055.7,4.86452]
[1742958367102,4.83366543,2055.8,2055.7,6.03059934]
[1742958367304,4.682,2055.8,2055.7,6.03059934]
[1742958367601,4.8348515,2055.8,2055.7,6.03059934]
[1742958368571,4.8348515,2055.8,2055.7,1.16607934]
[1742958368767,4.8348515,2055.8,2055.6,4.8647]
[1742958369810,4.8348515,2055.8,2055.7,4.86452]
[1742958370316,4.8348515,2055.8,2055.4,0.8273]
[1742958370471,0.7839,2055.7,2055.4,9.7303]
[1742958370672,0.15357531,2055.6,2055.4,9.7303]
[1742958370873,0.15357531,2055.6,2055.5,4.86499]
[1742958374491,4.682,2055.8,2055.5,9.7298]
[1742958374697,0.15404172,2055.7,2055.5,4.86481]
[1742958374896,4.682,2055.8,2055.5,4.86481]
[1742958375098,0.15404172,2055.7,2055.5,4.86481]
[1742958375299,4.682,2055.8,2055.5,4.86481]
[1742958375498,0.15404172,2055.7,2055.5,4.86481]
[1742958375698,4.682,2055.8,2055.5,4.86481]
[1742958375898,0.15404172,2055.7,2055.5,4.86481]
[1742958376098,4.682,2055.8,2055.5,4.86481]
[1742958376300,0.15404172,2055.7,2055.5,4.86481]
[1742958376503,4.682,2055.8,2055.5,4.86481]
[1742958376809,0.15404172,2055.7,2055.5,9.72962]
[1742958377111,4.682,2055.8,2055.5,9.72962]
[1742958377279,0.15404172,2055.7,2055.5,9.72962]
[1742958377479,4.682,2055.8,2055.5,10.808063]
[1742958377675,0.15404172,2055.7,2055.6,4.86475]
[1742958377916,4.682,2055.8,2055.6,4.86475]
[1742958378119,0.15404172,2055.7,2055.6,4.86475]
[1742958378294,4.682,2055.8,2055.6,4.86475]
[1742958378611,0.15404172,2055.7,2055.6,4.86475]
[1742958378811,4.83404172,2055.7,2055.6,6.760987]
[1742958378991,4.68,2055.7,2055.6,6.760987]
[1742958379186,4.83404172,2055.7,2055.6,6.760987]
[1742958379623,4.83404172,2055.7,2055.6,1.078437]
[1742958380412,4.83404172,2055.7,2055.5,4.86481]
[1742958381515,4.83404172,2055.7,2055.6,4.86475]
[1742958384527,0.15404172,2055.7,2055.6,4.86475]
[1742958384732,4.68,2055.8,2055.7,4.86452]
[1742958385032,4.83497849,2055.8,2055.7,4.86452]
[1742958385719,0.15497849,2055.8,2055.7,6.748627]
[1742958386021,4.68,2056.0,2055.9,4.86404]
[1742958388313,4.83645669,2056.0,2055.9,4.86404]
[1742958389026,4.83645669,2056.0,2055.8,4.86425]
[1742958389904,4.83645669,2056.0,2055.9,4.86404]
[1742958390105,4.83645669,2056.0,2055.8,4.86423]
[1742958391116,5.62875669,2056.0,2055.6,4.86475]
[1742958391314,7.96838683,2056.0,2055.5,4.86492]
[1742958391517,7.96838683,2056.0,2055.5,9.72974]
[1742958392236,7.96838683,2056.0,2055.6,4.86474]
[1742958392831,4.83645669,2056.0,2055.6,5.69407]
[1742958393016,4.83645669,2056.0,2055.7,4.8645]
[1742958393330,4.83645669,2056.0,2055.8,4.8642]
[1742958393699,4.83645669,2056.0,2055.7,4.86447]
[1742958394327,4.83645669,2056.0,2055.8,4.86411]
[1742958394704,0.15645669,2056.0,2055.9,4.86404]
[1742958395010,4.679,2056.0,2055.9,4.86404]
[1742958395217,4.82085859,2056.0,2055.9,5.836855]
[1742958395927,0.14185859,2056.0,2055.9,5.836855]
[1742958396133,4.679,2056.1,2055.9,6.666255]
[1742958396329,0.14191503,2056.0,2055.9,6.666255]